[Event "Titled Tuesday Blitz August 09 Late 2022"]
[White "Ibarra Jerez, Jose Carlos"]
[Black "Grischuk, Alexander"]
[WhiteFideId "2226332"]
[BlackFideId "4126025"]
[WhiteElo "2628"]
[BlackElo "2762"]
[Result "0-1"]
[Round "10"]
[TimeControl "180+1"]
[Date "2022.08.09"]
[WhiteClock "0:00:02"]
[BlackClock "0:00:06"]

1. Nf3 {[%clk 0:02:54]}  d5 {[%clk 0:02:59]} 2. g3 {[%clk 0:02:54]}  Nf6 {[%clk 0:02:58]} 3. Bg2 {[%clk 0:02:54]}  c5 {[%clk 0:02:58]} 4. O-O {[%clk 0:02:55]}  g6 {[%clk 0:02:58]} 5. c4 {[%clk 0:02:46]}  Bg7 {[%clk 0:02:50]} 6. cxd5 {[%clk 0:02:36]}  Nxd5 {[%clk 0:02:51]} 7. Nc3 {[%clk 0:02:37]}  Nc6 {[%clk 0:02:42]} 8. d3 {[%clk 0:02:23]}  O-O {[%clk 0:02:40]} 9. Bd2 {[%clk 0:02:21]}  b6 {[%clk 0:02:36]} 10. Qa4 {[%clk 0:02:16]}  Bb7 {[%clk 0:02:33]} 11. Qh4 {[%clk 0:02:16]}  Nxc3 {[%clk 0:02:13]} 12. Bxc3 {[%clk 0:02:15]}  e6 {[%clk 0:02:10]} 13. Qxd8 {[%clk 0:01:43]}  Rfxd8 {[%clk 0:02:11]} 14. Rfc1 {[%clk 0:01:43]}  Rac8 {[%clk 0:02:09]} 15. a3 {[%clk 0:01:35]}  h6 {[%clk 0:01:54]} 16. Nd2 {[%clk 0:01:16]}  Rc7 {[%clk 0:01:38]} 17. Bxg7 {[%clk 0:01:08]}  Kxg7 {[%clk 0:01:39]} 18. Bxc6 {[%clk 0:01:07]}  Rxc6 {[%clk 0:00:48]} 19. f3 {[%clk 0:01:02]}  Rdc8 {[%clk 0:00:42]} 20. Rc3 {[%clk 0:00:59]}  g5 {[%clk 0:00:39]} 21. Rac1 {[%clk 0:00:57]}  f5 {[%clk 0:00:37]} 22. Kf2 {[%clk 0:00:57]}  Kf6 {[%clk 0:00:37]} 23. f4 {[%clk 0:00:39]}  e5 {[%clk 0:00:36]} 24. Nf3 {[%clk 0:00:25]}  exf4 {[%clk 0:00:35]} 25. gxf4 {[%clk 0:00:26]}  Re6 {[%clk 0:00:29]} 26. Rg1 {[%clk 0:00:18]}  Bxf3 {[%clk 0:00:27]} 27. Kxf3 {[%clk 0:00:18]}  Rce8 {[%clk 0:00:27]} 28. fxg5+ {[%clk 0:00:09]}  hxg5 {[%clk 0:00:28]} 29. Rc2 {[%clk 0:00:08]}  g4+ {[%clk 0:00:20]} 30. Kf2 {[%clk 0:00:09]}  a5 {[%clk 0:00:16]} 31. b4 {[%clk 0:00:07]}  cxb4 {[%clk 0:00:16]} 32. axb4 {[%clk 0:00:08]}  a4 {[%clk 0:00:14]} 33. b5 {[%clk 0:00:07]}  Re5 {[%clk 0:00:13]} 34. Ra1 {[%clk 0:00:06]}  Rxb5 {[%clk 0:00:08]} 35. Rxa4 {[%clk 0:00:06]}  Rbe5 {[%clk 0:00:06]} 36. Ra6 {[%clk 0:00:04]}  R8e6 {[%clk 0:00:06]} 37. Rb2 {[%clk 0:00:04]}  Kg5 {[%clk 0:00:05]} 38. Raxb6 {[%clk 0:00:03]}  Rxe2+ {[%clk 0:00:05]} 39. Rxe2 {[%clk 0:00:04]}  Rxb6 {[%clk 0:00:05]} 40. d4 {[%clk 0:00:04]}  Kf4 {[%clk 0:00:04]} 41. Rd2 {[%clk 0:00:05]}  Rd6 {[%clk 0:00:04]} 42. d5 {[%clk 0:00:04]}  Ke4 {[%clk 0:00:04]} 43. Re2+ {[%clk 0:00:04]}  Kxd5 {[%clk 0:00:04]} 44. Kg3 {[%clk 0:00:05]}  Re6 {[%clk 0:00:05]} 45. Rd2+ {[%clk 0:00:04]}  Ke5 {[%clk 0:00:05]} 46. Re2+ {[%clk 0:00:03]}  Kf6 {[%clk 0:00:05]} 47. Rxe6+ {[%clk 0:00:02]}  Kxe6 {[%clk 0:00:05]} 48. Kf4 {[%clk 0:00:02]}  Kf6 {[%clk 0:00:05]} 49. Ke3 {[%clk 0:00:01]}  Kg5 {[%clk 0:00:06]} 50. Kf2 {[%clk 0:00:01]}  Kh4 {[%clk 0:00:05]} 51. Kg2 {[%clk 0:00:02]}  f4 {[%clk 0:00:06]} 52. Kf2 {[%clk 0:00:02]}  Kh3 {[%clk 0:00:06]} 53. Kg1 {[%clk 0:00:03]}  Kh4 {[%clk 0:00:04]} 54. Kh1 {[%clk 0:00:03]}  Kg5 {[%clk 0:00:05]} 55. Kg2 {[%clk 0:00:04]}  Kf5 {[%clk 0:00:05]} 56. Kf2 {[%clk 0:00:03]}  Ke4 {[%clk 0:00:06]} 57. Ke2 {[%clk 0:00:04]}  Kd4 {[%clk 0:00:05]} 58. Kd2 {[%clk 0:00:04]}  Kc4 {[%clk 0:00:05]} 59. Ke2 {[%clk 0:00:02]}  Kc3 {[%clk 0:00:05]} 60. Kf2 {[%clk 0:00:01]}  Kd2 {[%clk 0:00:05]} 61. Kf1 {[%clk 0:00:02]}  Kd3 {[%clk 0:00:03]} 62. Kf2 {[%clk 0:00:01]}  Kc3 {[%clk 0:00:04]} 63. Ke2 {[%clk 0:00:02]}  Kc2 {[%clk 0:00:04]} 64. Ke1 {[%clk 0:00:03]}  Kd3 {[%clk 0:00:03]} 65. Kd1 {[%clk 0:00:03]}  Ke3 {[%clk 0:00:03]} 66. Ke1 {[%clk 0:00:03]}  Kf3 {[%clk 0:00:03]} 67. Kf1 {[%clk 0:00:04]}  g3 {[%clk 0:00:03]} 68. h3 {[%clk 0:00:01]}  Ke4 {[%clk 0:00:03]} 69. Kg2 {[%clk 0:00:01]}  Kf5 {[%clk 0:00:04]} 70. Kf3 {[%clk 0:00:02]}  Kg5 {[%clk 0:00:04]} 71. Kg2 {[%clk 0:00:01]}  Kh4 {[%clk 0:00:05]} 72. Kf3 {[%clk 0:00:02]}  Kxh3 {[%clk 0:00:06]} 0-1


[Site "https://www.chess.com"]

[Event "Titled Tuesday Blitz August 09 Late 2022"]
[White "Melikhov, Evgeny V."]
[Black "Jeet, Jain"]
[WhiteFideId "4122046"]
[BlackFideId "5073022"]
[WhiteElo "1963"]
[BlackElo "2055"]
[Result "0-1"]
[Round "10"]
[TimeControl "180+1"]
[Date "2022.08.09"]
[WhiteClock "0:00:22"]
[BlackClock "0:00:58"]

1. d4 {[%clk 0:03:00]}  f5 {[%clk 0:02:54]} 2. e4 {[%clk 0:03:00]}  fxe4 {[%clk 0:02:52]} 3. Nc3 {[%clk 0:03:00]}  Nf6 {[%clk 0:02:49]} 4. Bg5 {[%clk 0:02:59]}  e6 {[%clk 0:02:27]} 5. Nxe4 {[%clk 0:02:54]}  Be7 {[%clk 0:02:27]} 6. Bxf6 {[%clk 0:02:52]}  Bxf6 {[%clk 0:02:28]} 7. Nf3 {[%clk 0:02:42]}  O-O {[%clk 0:02:27]} 8. Bd3 {[%clk 0:02:41]}  Nc6 {[%clk 0:02:26]} 9. c3 {[%clk 0:02:37]}  d5 {[%clk 0:02:25]} 10. Nxf6+ {[%clk 0:02:36]}  Qxf6 {[%clk 0:02:25]} 11. Qe2 {[%clk 0:02:36]}  Re8 {[%clk 0:02:24]} 12. Ne5 {[%clk 0:02:30]}  Nxe5 {[%clk 0:02:22]} 13. dxe5 {[%clk 0:02:25]}  Qh6 {[%clk 0:02:21]} 14. g3 {[%clk 0:02:21]}  c5 {[%clk 0:02:17]} 15. f4 {[%clk 0:02:20]}  Bd7 {[%clk 0:02:16]} 16. O-O {[%clk 0:02:15]}  Bc6 {[%clk 0:02:15]} 17. Rae1 {[%clk 0:02:13]}  Rf8 {[%clk 0:02:15]} 18. b4 {[%clk 0:01:59]}  cxb4 {[%clk 0:02:12]} 19. cxb4 {[%clk 0:01:59]}  a6 {[%clk 0:02:12]} 20. Qe3 {[%clk 0:01:54]}  Rf7 {[%clk 0:02:05]} 21. Qd4 {[%clk 0:01:46]}  Raf8 {[%clk 0:02:05]} 22. f5 {[%clk 0:01:38]}  exf5 {[%clk 0:02:02]} 23. e6 {[%clk 0:01:39]}  Re7 {[%clk 0:01:56]} 24. Bxf5 {[%clk 0:01:35]}  Qf6 {[%clk 0:01:54]} 25. Qxf6 {[%clk 0:01:33]}  Rxf6 {[%clk 0:01:55]} 26. Bh3 {[%clk 0:01:30]}  Rxf1+ {[%clk 0:01:45]} 27. Kxf1 {[%clk 0:01:30]}  Bb5+ {[%clk 0:01:40]} 28. Kf2 {[%clk 0:01:29]}  Bc4 {[%clk 0:01:40]} 29. Ke3 {[%clk 0:01:23]}  Bxa2 {[%clk 0:01:36]} 30. Kd4 {[%clk 0:01:23]}  Kf8 {[%clk 0:01:29]} 31. Ke5 {[%clk 0:01:23]}  Re8 {[%clk 0:01:22]} 32. Rf1+ {[%clk 0:01:20]}  Kg8 {[%clk 0:01:22]} 33. Kd6 {[%clk 0:01:14]}  Bc4 {[%clk 0:01:18]} 34. e7 {[%clk 0:01:10]}  Bxf1 {[%clk 0:01:14]} 35. Be6+ {[%clk 0:00:58]}  Kh8 {[%clk 0:01:14]} 36. Bxd5 {[%clk 0:00:30]}  Bb5 {[%clk 0:01:08]} 37. Bxb7 {[%clk 0:00:30]}  g5 {[%clk 0:01:03]} 38. Bd5 {[%clk 0:00:25]}  Kg7 {[%clk 0:01:03]} 39. Ke6 {[%clk 0:00:22]}  Rb8 {[%clk 0:00:58]} 0-1


[Site "https://www.chess.com"]

[Event "Titled Tuesday Blitz August 09 Late 2022"]
[White "Naroditsky, Daniel"]
[Black "Bortnyk, Olexandr"]
[WhiteFideId "2026961"]
[BlackFideId "14120828"]
[WhiteElo "2628"]
[BlackElo "2723"]
[Result "0-1"]
[Round "10"]
[TimeControl "180+1"]
[Date "2022.08.09"]
[WhiteClock "0:00:02"]
[BlackClock "0:00:03"]

1. e4 {[%clk 0:02:59]}  d6 {[%clk 0:02:59]} 2. Nc3 {[%clk 0:02:57]}  Nf6 {[%clk 0:03:00]} 3. f4 {[%clk 0:02:54]}  Nbd7 {[%clk 0:03:00]} 4. Nf3 {[%clk 0:02:52]}  e5 {[%clk 0:03:00]} 5. Bc4 {[%clk 0:02:48]}  Be7 {[%clk 0:02:47]} 6. d3 {[%clk 0:02:46]}  O-O {[%clk 0:02:42]} 7. O-O {[%clk 0:02:46]}  c6 {[%clk 0:02:39]} 8. a4 {[%clk 0:02:35]}  a5 {[%clk 0:02:09]} 9. Kh1 {[%clk 0:02:33]}  exf4 {[%clk 0:02:01]} 10. Bxf4 {[%clk 0:02:34]}  Nc5 {[%clk 0:02:01]} 11. Qd2 {[%clk 0:02:08]}  Be6 {[%clk 0:01:54]} 12. Bxe6 {[%clk 0:02:06]}  Nxe6 {[%clk 0:01:55]} 13. Bg3 {[%clk 0:02:04]}  d5 {[%clk 0:01:53]} 14. Rae1 {[%clk 0:01:51]}  Bb4 {[%clk 0:00:56]} 15. e5 {[%clk 0:01:23]}  Nh5 {[%clk 0:00:56]} 16. d4 {[%clk 0:01:23]}  Nxg3+ {[%clk 0:00:52]} 17. hxg3 {[%clk 0:01:24]}  c5 {[%clk 0:00:40]} 18. Rd1 {[%clk 0:01:24]}  Rc8 {[%clk 0:00:34]} 19. Qd3 {[%clk 0:01:08]}  cxd4 {[%clk 0:00:33]} 20. Nxd4 {[%clk 0:01:09]}  Bxc3 {[%clk 0:00:21]} 21. bxc3 {[%clk 0:01:10]}  Nc5 {[%clk 0:00:21]} 22. Qe3 {[%clk 0:00:44]}  Ne4 {[%clk 0:00:22]} 23. Rd3 {[%clk 0:00:37]}  Qd7 {[%clk 0:00:23]} 24. Nf5 {[%clk 0:00:32]}  Qe6 {[%clk 0:00:04]} 25. Rxd5 {[%clk 0:00:32]}  Nxc3 {[%clk 0:00:03]} 26. Rd6 {[%clk 0:00:33]}  Qc4 {[%clk 0:00:03]} 27. Rf3 {[%clk 0:00:12]}  Kh8 {[%clk 0:00:03]} 28. Qg5 {[%clk 0:00:08]}  Rg8 {[%clk 0:00:04]} 29. Rh6 {[%clk 0:00:05]}  Rc6 {[%clk 0:00:03]} 30. Rh4 {[%clk 0:00:03]}  Qd5 {[%clk 0:00:03]} 31. Ne7 {[%clk 0:00:04]}  Qd1+ {[%clk 0:00:03]} 32. Kh2 {[%clk 0:00:05]}  Ne2 {[%clk 0:00:02]} 33. Re3 {[%clk 0:00:02]}  Qg1+ {[%clk 0:00:03]} 34. Kh3 {[%clk 0:00:03]}  Qh1+ {[%clk 0:00:03]} 35. Kg4 {[%clk 0:00:03]}  Rc4+ {[%clk 0:00:03]} 36. Kh5 {[%clk 0:00:03]}  Nxg3+ {[%clk 0:00:01]} 37. Rxg3 {[%clk 0:00:02]}  g6+ {[%clk 0:00:02]} 38. Nxg6+ {[%clk 0:00:02]}  fxg6+ {[%clk 0:00:03]} 0-1


[Site "https://www.chess.com"]

[Event "Titled Tuesday Blitz August 09 Late 2022"]
[White "Pakleza, Zbigniew"]
[Black "Kamsky, Gata"]
[WhiteFideId "1119290"]
[BlackFideId "2000024"]
[WhiteElo "2411"]
[BlackElo "2666"]
[Result "0-1"]
[Round "10"]
[TimeControl "180+1"]
[Date "2022.08.09"]
[WhiteClock "0:00:03"]
[BlackClock "0:00:23"]

1. d4 {[%clk 0:03:00]}  Nf6 {[%clk 0:02:58]} 2. Nf3 {[%clk 0:03:01]}  g6 {[%clk 0:02:51]} 3. Bf4 {[%clk 0:03:01]}  Bg7 {[%clk 0:02:50]} 4. e3 {[%clk 0:03:01]}  d6 {[%clk 0:02:50]} 5. h3 {[%clk 0:03:01]}  O-O {[%clk 0:02:49]} 6. Be2 {[%clk 0:03:02]}  c5 {[%clk 0:02:46]} 7. c3 {[%clk 0:03:02]}  Qb6 {[%clk 0:02:45]} 8. Qb3 {[%clk 0:03:02]}  Be6 {[%clk 0:02:43]} 9. Qxb6 {[%clk 0:03:03]}  axb6 {[%clk 0:02:43]} 10. a3 {[%clk 0:03:03]}  Bd7 {[%clk 0:02:31]} 11. Nbd2 {[%clk 0:03:02]}  Bc6 {[%clk 0:02:25]} 12. O-O {[%clk 0:02:59]}  b5 {[%clk 0:02:16]} 13. Rfd1 {[%clk 0:02:41]}  Nbd7 {[%clk 0:02:12]} 14. Bd3 {[%clk 0:02:23]}  c4 {[%clk 0:02:10]} 15. Bc2 {[%clk 0:02:22]}  Nd5 {[%clk 0:02:07]} 16. Bh2 {[%clk 0:02:14]}  f5 {[%clk 0:01:58]} 17. e4 {[%clk 0:02:11]}  fxe4 {[%clk 0:01:56]} 18. Nxe4 {[%clk 0:02:06]}  h6 {[%clk 0:01:42]} 19. Re1 {[%clk 0:01:59]}  Rf7 {[%clk 0:01:38]} 20. Nh4 {[%clk 0:01:38]}  Nf8 {[%clk 0:01:37]} 21. Nd2 {[%clk 0:01:31]}  Rf6 {[%clk 0:01:31]} 22. Ne4 {[%clk 0:01:00]}  Rf7 {[%clk 0:01:30]} 23. Nd2 {[%clk 0:01:00]}  Kh7 {[%clk 0:01:29]} 24. Bg3 {[%clk 0:00:55]}  Bf6 {[%clk 0:01:28]} 25. Nhf3 {[%clk 0:00:52]}  Kg7 {[%clk 0:01:28]} 26. Nh2 {[%clk 0:00:51]}  Bg5 {[%clk 0:01:25]} 27. Ndf1 {[%clk 0:00:44]}  Nd7 {[%clk 0:00:54]} 28. Ne3 {[%clk 0:00:43]}  N7b6 {[%clk 0:00:48]} 29. Nhg4 {[%clk 0:00:35]}  h5 {[%clk 0:00:46]} 30. Nxd5 {[%clk 0:00:35]}  Nxd5 {[%clk 0:00:46]} 31. Ne3 {[%clk 0:00:36]}  Nxe3 {[%clk 0:00:42]} 32. fxe3 {[%clk 0:00:37]}  h4 {[%clk 0:00:42]} 33. Bh2 {[%clk 0:00:19]}  Raf8 {[%clk 0:00:41]} 34. Re2 {[%clk 0:00:19]}  Kh6 {[%clk 0:00:39]} 35. Rae1 {[%clk 0:00:18]}  Re8 {[%clk 0:00:34]} 36. e4 {[%clk 0:00:16]}  e5 {[%clk 0:00:34]} 37. dxe5 {[%clk 0:00:15]}  dxe5 {[%clk 0:00:34]} 38. Kh1 {[%clk 0:00:16]}  Bf4 {[%clk 0:00:31]} 39. Rf1 {[%clk 0:00:12]}  g5 {[%clk 0:00:31]} 40. Rd1 {[%clk 0:00:12]}  Ree7 {[%clk 0:00:29]} 41. Rd6+ {[%clk 0:00:12]}  Kg7 {[%clk 0:00:29]} 42. Kg1 {[%clk 0:00:10]}  Rd7 {[%clk 0:00:29]} 43. Rxd7 {[%clk 0:00:09]}  Rxd7 {[%clk 0:00:29]} 44. Bxf4 {[%clk 0:00:10]}  gxf4 {[%clk 0:00:29]} 45. Kf2 {[%clk 0:00:11]}  Kf6 {[%clk 0:00:30]} 46. Ke1 {[%clk 0:00:08]}  Rg7 {[%clk 0:00:29]} 47. Rd2 {[%clk 0:00:07]}  Ke7 {[%clk 0:00:29]} 48. Kf2 {[%clk 0:00:07]}  Rg3 {[%clk 0:00:28]} 49. Re2 {[%clk 0:00:03]}  Bd7 {[%clk 0:00:27]} 50. Rd2 {[%clk 0:00:02]}  f3 {[%clk 0:00:22]} 51. gxf3 {[%clk 0:00:02]}  Bxh3 {[%clk 0:00:23]} 52. Bd1 {[%clk 0:00:01]}  Rg2+ {[%clk 0:00:23]} 53. Ke3 {[%clk 0:00:02]}  Rxd2 {[%clk 0:00:23]} 54. Kxd2 {[%clk 0:00:03]}  Kf6 {[%clk 0:00:23]} 55. f4 {[%clk 0:00:04]}  exf4 {[%clk 0:00:23]} 56. e5+ {[%clk 0:00:04]}  Kxe5 {[%clk 0:00:23]} 57. Bf3 {[%clk 0:00:04]}  Bf5 {[%clk 0:00:23]} 58. Bxb7 {[%clk 0:00:03]}  h3 {[%clk 0:00:23]} 59. Ke2 {[%clk 0:00:03]}  Be4 {[%clk 0:00:23]} 0-1


[Site "https://www.chess.com"]

[Event "Titled Tuesday Blitz August 09 Late 2022"]
[White "Przybylski, Wojciech"]
[Black "Djordjevic, Vuk"]
[WhiteFideId "1117599"]
[BlackFideId "902098"]
[WhiteElo "2133"]
[BlackElo "2456"]
[Result "0-1"]
[Round "10"]
[TimeControl "180+1"]
[Date "2022.08.09"]
[WhiteClock "0:00:10"]
[BlackClock "0:00:15"]

1. e4 {[%clk 0:03:00]}  d5 {[%clk 0:03:00]} 2. exd5 {[%clk 0:02:59]}  Qxd5 {[%clk 0:03:00]} 3. Nc3 {[%clk 0:03:00]}  Qd6 {[%clk 0:03:01]} 4. g3 {[%clk 0:02:59]}  Nf6 {[%clk 0:03:01]} 5. Bg2 {[%clk 0:02:59]}  c6 {[%clk 0:03:02]} 6. Nge2 {[%clk 0:02:59]}  Bg4 {[%clk 0:03:02]} 7. O-O {[%clk 0:02:59]}  e6 {[%clk 0:03:02]} 8. h3 {[%clk 0:02:59]}  Bxe2 {[%clk 0:03:02]} 9. Qxe2 {[%clk 0:02:58]}  Nbd7 {[%clk 0:03:02]} 10. d3 {[%clk 0:02:58]}  Qc7 {[%clk 0:03:03]} 11. Bf4 {[%clk 0:02:56]}  Bd6 {[%clk 0:03:03]} 12. Be3 {[%clk 0:02:56]}  O-O {[%clk 0:03:02]} 13. Ne4 {[%clk 0:02:54]}  Nxe4 {[%clk 0:02:56]} 14. Bxe4 {[%clk 0:02:53]}  Nf6 {[%clk 0:02:54]} 15. Bg2 {[%clk 0:02:52]}  Nd5 {[%clk 0:02:51]} 16. Bd2 {[%clk 0:02:52]}  Qb6 {[%clk 0:02:49]} 17. c4 {[%clk 0:02:35]}  Ne7 {[%clk 0:02:42]} 18. Bc3 {[%clk 0:02:26]}  Nf5 {[%clk 0:02:32]} 19. Qg4 {[%clk 0:02:17]}  Bb4 {[%clk 0:01:51]} 20. Rab1 {[%clk 0:01:51]}  Bxc3 {[%clk 0:01:27]} 21. bxc3 {[%clk 0:01:51]}  Qc7 {[%clk 0:01:27]} 22. c5 {[%clk 0:01:46]}  Rfd8 {[%clk 0:01:22]} 23. d4 {[%clk 0:01:44]}  Ne7 {[%clk 0:01:22]} 24. Qe2 {[%clk 0:01:33]}  b6 {[%clk 0:01:19]} 25. cxb6 {[%clk 0:01:26]}  axb6 {[%clk 0:01:19]} 26. Rfc1 {[%clk 0:01:25]}  Ra5 {[%clk 0:01:13]} 27. Qc4 {[%clk 0:01:19]}  Rda8 {[%clk 0:01:11]} 28. Rc2 {[%clk 0:01:16]}  Nd5 {[%clk 0:01:06]} 29. Rbb2 {[%clk 0:01:13]}  Ra4 {[%clk 0:01:02]} 30. Qd3 {[%clk 0:01:12]}  Ra3 {[%clk 0:01:02]} 31. Qd2 {[%clk 0:01:12]}  Ne7 {[%clk 0:00:57]} 32. c4 {[%clk 0:01:09]}  Rd8 {[%clk 0:00:57]} 33. Qb4 {[%clk 0:00:59]}  Ra6 {[%clk 0:00:57]} 34. Rd2 {[%clk 0:00:54]}  h6 {[%clk 0:00:48]} 35. Kh2 {[%clk 0:00:53]}  Nf5 {[%clk 0:00:48]} 36. c5 {[%clk 0:00:52]}  b5 {[%clk 0:00:47]} 37. Qc3 {[%clk 0:00:43]}  Ra4 {[%clk 0:00:42]} 38. Rb4 {[%clk 0:00:42]}  Qa5 {[%clk 0:00:43]} 39. Rb3 {[%clk 0:00:37]}  Qxc3 {[%clk 0:00:41]} 40. Rxc3 {[%clk 0:00:37]}  Rdxd4 {[%clk 0:00:41]} 41. Rcd3 {[%clk 0:00:32]}  Rxd3 {[%clk 0:00:40]} 42. Rxd3 {[%clk 0:00:32]}  Rxa2 {[%clk 0:00:41]} 43. Bxc6 {[%clk 0:00:32]}  Rxf2+ {[%clk 0:00:41]} 44. Kg1 {[%clk 0:00:32]}  Rc2 {[%clk 0:00:41]} 45. Be4 {[%clk 0:00:27]}  Rc1+ {[%clk 0:00:39]} 46. Kf2 {[%clk 0:00:26]}  g6 {[%clk 0:00:24]} 47. c6 {[%clk 0:00:23]}  Ne7 {[%clk 0:00:24]} 48. Rd7 {[%clk 0:00:17]}  Nxc6 {[%clk 0:00:12]} 49. Rc7 {[%clk 0:00:17]}  Rc4 {[%clk 0:00:12]} 50. Bxc6 {[%clk 0:00:17]}  b4 {[%clk 0:00:07]} 51. Rc8+ {[%clk 0:00:16]}  Kg7 {[%clk 0:00:07]} 52. Bd7 {[%clk 0:00:16]}  Rxc8 {[%clk 0:00:07]} 53. Bxc8 {[%clk 0:00:17]}  b3 {[%clk 0:00:07]} 54. Ba6 {[%clk 0:00:17]}  b2 {[%clk 0:00:08]} 55. Bd3 {[%clk 0:00:16]}  f5 {[%clk 0:00:08]} 56. Ke3 {[%clk 0:00:16]}  Kf6 {[%clk 0:00:08]} 57. Kd4 {[%clk 0:00:15]}  e5+ {[%clk 0:00:08]} 58. Kc3 {[%clk 0:00:15]}  e4 {[%clk 0:00:09]} 59. Bc2 {[%clk 0:00:16]}  Ke5 {[%clk 0:00:06]} 60. Kxb2 {[%clk 0:00:16]}  Kd4 {[%clk 0:00:07]} 61. Kc1 {[%clk 0:00:12]}  Ke3 {[%clk 0:00:07]} 62. Kd1 {[%clk 0:00:12]}  Kf2 {[%clk 0:00:05]} 63. g4 {[%clk 0:00:11]}  e3 {[%clk 0:00:05]} 64. Bd3 {[%clk 0:00:11]}  fxg4 {[%clk 0:00:05]} 65. hxg4 {[%clk 0:00:10]}  h5 {[%clk 0:00:06]} 66. gxh5 {[%clk 0:00:10]}  gxh5 {[%clk 0:00:06]} 67. Bc4 {[%clk 0:00:03]}  h4 {[%clk 0:00:06]} 68. Kc2 {[%clk 0:00:01]}  h3 {[%clk 0:00:06]} 69. Be2 {[%clk 0:00:01]}  Kxe2 {[%clk 0:00:06]} 70. Kc3 {[%clk 0:00:02]}  Kf2 {[%clk 0:00:07]} 71. Kd4 {[%clk 0:00:02]}  e2 {[%clk 0:00:08]} 72. Kd3 {[%clk 0:00:03]}  e1=Q {[%clk 0:00:09]} 73. Kd4 {[%clk 0:00:04]}  Qe3+ {[%clk 0:00:09]} 74. Kd5 {[%clk 0:00:04]}  Kf3 {[%clk 0:00:10]} 75. Kd6 {[%clk 0:00:05]}  Qe4 {[%clk 0:00:11]} 76. Kc7 {[%clk 0:00:06]}  Kf4 {[%clk 0:00:12]} 77. Kb8 {[%clk 0:00:06]}  Qb4+ {[%clk 0:00:12]} 78. Ka7 {[%clk 0:00:07]}  Ke5 {[%clk 0:00:13]} 79. Ka8 {[%clk 0:00:08]}  Kd6 {[%clk 0:00:14]} 80. Ka7 {[%clk 0:00:09]}  Kc7 {[%clk 0:00:14]} 81. Ka8 {[%clk 0:00:10]}  Qa4# {[%clk 0:00:15]} 0-1


[Site "https://www.chess.com"]

[Event "Titled Tuesday Blitz August 09 Late 2022"]
[White "Romanchuk, Viktor"]
[Black "Mahdavi, Reza"]
[WhiteFideId "14109271"]
[BlackFideId "12595926"]
[WhiteElo "2242"]
[BlackElo "2226"]
[Result "0-1"]
[Round "10"]
[TimeControl "180+1"]
[Date "2022.08.09"]
[WhiteClock "0:00:58"]
[BlackClock "0:02:03"]

1. d4 {[%clk 0:03:00]}  d5 {[%clk 0:02:56]} 2. c4 {[%clk 0:03:00]}  e6 {[%clk 0:02:56]} 3. Nc3 {[%clk 0:03:00]}  Nf6 {[%clk 0:02:46]} 4. Nf3 {[%clk 0:02:59]}  Bb4 {[%clk 0:02:40]} 5. cxd5 {[%clk 0:02:55]}  exd5 {[%clk 0:02:39]} 6. Bg5 {[%clk 0:02:55]}  h6 {[%clk 0:02:36]} 7. Bxf6 {[%clk 0:02:54]}  Qxf6 {[%clk 0:02:35]} 8. e3 {[%clk 0:02:55]}  c6 {[%clk 0:02:32]} 9. Bd3 {[%clk 0:02:54]}  O-O {[%clk 0:02:32]} 10. O-O {[%clk 0:02:52]}  Nd7 {[%clk 0:02:32]} 11. a3 {[%clk 0:02:51]}  Bd6 {[%clk 0:02:30]} 12. e4 {[%clk 0:02:50]}  dxe4 {[%clk 0:02:27]} 13. Nxe4 {[%clk 0:02:45]}  Qe7 {[%clk 0:02:28]} 14. Re1 {[%clk 0:02:45]}  Nf6 {[%clk 0:02:28]} 15. Ne5 {[%clk 0:02:23]}  Nxe4 {[%clk 0:02:17]} 16. Bxe4 {[%clk 0:02:15]}  Be6 {[%clk 0:02:17]} 17. d5 {[%clk 0:02:01]}  Bxe5 {[%clk 0:02:12]} 18. dxe6 {[%clk 0:02:00]}  Qxe6 {[%clk 0:02:12]} 19. Qh5 {[%clk 0:01:48]}  Qf6 {[%clk 0:02:08]} 20. Bxc6 {[%clk 0:01:04]}  Bxb2 {[%clk 0:02:04]} 21. Rab1 {[%clk 0:00:58]}  bxc6 {[%clk 0:02:03]} 0-1


[Site "https://www.chess.com"]

[Event "Titled Tuesday Blitz August 09 Late 2022"]
[White "Sarana, Alexey"]
[Black "Shimanov, Aleksandr"]
[WhiteFideId "24133795"]
[BlackFideId "4198603"]
[WhiteElo "2666"]
[BlackElo "2605"]
[Result "0-1"]
[Round "10"]
[TimeControl "180+1"]
[Date "2022.08.09"]
[WhiteClock "0:00:03"]
[BlackClock "0:00:09"]

1. c4 {[%clk 0:03:00]}  g6 {[%clk 0:02:59]} 2. Nc3 {[%clk 0:03:00]}  Bg7 {[%clk 0:02:59]} 3. g3 {[%clk 0:03:01]}  Nf6 {[%clk 0:02:59]} 4. Bg2 {[%clk 0:03:02]}  O-O {[%clk 0:03:00]} 5. Nf3 {[%clk 0:03:01]}  d6 {[%clk 0:03:00]} 6. O-O {[%clk 0:03:01]}  Nc6 {[%clk 0:02:59]} 7. d4 {[%clk 0:03:01]}  e5 {[%clk 0:02:59]} 8. d5 {[%clk 0:03:01]}  Nb8 {[%clk 0:02:59]} 9. e4 {[%clk 0:03:01]}  a5 {[%clk 0:02:59]} 10. Re1 {[%clk 0:03:02]}  Na6 {[%clk 0:03:00]} 11. b3 {[%clk 0:03:02]}  Nd7 {[%clk 0:02:58]} 12. Rb1 {[%clk 0:02:58]}  f5 {[%clk 0:02:40]} 13. a3 {[%clk 0:02:25]}  f4 {[%clk 0:02:35]} 14. b4 {[%clk 0:02:23]}  g5 {[%clk 0:02:35]} 15. h3 {[%clk 0:02:22]}  h5 {[%clk 0:02:31]} 16. Nb5 {[%clk 0:02:10]}  g4 {[%clk 0:02:19]} 17. Nh4 {[%clk 0:02:07]}  f3 {[%clk 0:02:13]} 18. Bf1 {[%clk 0:02:06]}  Nf6 {[%clk 0:01:58]} 19. Bg5 {[%clk 0:02:00]}  Qe8 {[%clk 0:01:49]} 20. c5 {[%clk 0:01:55]}  Nh7 {[%clk 0:01:49]} 21. Qd2 {[%clk 0:01:45]}  Qd7 {[%clk 0:00:54]} 22. Nf5 {[%clk 0:01:30]}  Rxf5 {[%clk 0:00:45]} 23. exf5 {[%clk 0:01:31]}  axb4 {[%clk 0:00:43]} 24. axb4 {[%clk 0:01:31]}  Qxf5 {[%clk 0:00:37]} 25. Bh4 {[%clk 0:01:30]}  Qf8 {[%clk 0:00:35]} 26. Bd3 {[%clk 0:01:24]}  Kh8 {[%clk 0:00:27]} 27. c6 {[%clk 0:01:10]}  bxc6 {[%clk 0:00:26]} 28. dxc6 {[%clk 0:01:11]}  Be6 {[%clk 0:00:25]} 29. Ra1 {[%clk 0:01:10]}  d5 {[%clk 0:00:23]} 30. Nc3 {[%clk 0:00:46]}  Nxb4 {[%clk 0:00:15]} 31. Rxa8 {[%clk 0:00:38]}  Qxa8 {[%clk 0:00:16]} 32. Bxh7 {[%clk 0:00:38]}  Kxh7 {[%clk 0:00:17]} 33. Nb5 {[%clk 0:00:39]}  Qa5 {[%clk 0:00:07]} 34. Qg5 {[%clk 0:00:16]}  Bf7 {[%clk 0:00:08]} 35. Qe7 {[%clk 0:00:08]}  Nxc6 {[%clk 0:00:07]} 36. Qxf7 {[%clk 0:00:01]}  Qxe1+ {[%clk 0:00:07]} 37. Kh2 {[%clk 0:00:02]}  Qxf2+ {[%clk 0:00:08]} 38. Kh1 {[%clk 0:00:03]}  Qg2# {[%clk 0:00:09]} 0-1


[Site "https://www.chess.com"]